[Event "Karel Janecek Open 2024"]
[Site "Prague"]
[Date "2024.03.04"]
[Round "6.13"]
[White "Stoyanov, Tsvetan"]
[Black "Mis, Mieszko"]
[Result "1/2-1/2"]
[ECO "D32"]
[WhiteElo "2465"]
[BlackElo "2301"]
[Annotator "TA"]
[PlyCount "51"]
[EventDate "2024.02.22"]
[EventType "swiss"]
[EventCountry "CZE"]
[SourceTitle "playchess.com"]
[Source "ChessBase"]
[SourceQuality "1"]
[TimeControl "40/5400+30:1800+30"]

{[%evp 16,51,18,19,22,16,7,0,0,0,0,0,0,0,0,0,0,0,0,-14,-16,-10,0,0,0,0,0,0,0,0,0,0,1,0,0,0,0,0]} 1. c4 {[%emt 0:00:04]} c5 {[%emt 0:00:18]} 2. Nf3 {[%emt 0:00:13]} Nf6 {[%emt 0:00:26]} 3. Nc3 {[%emt 0:00:12]} Nc6 {[%emt 0:00:15]} 4. e3 {[%emt 0:00:21]} e6 {[%emt 0:00:25]} 5. d4 {[%emt 0:00:11]} d5 {[%emt 0:00:10]} 6. cxd5 {[%emt 0:00:18]} exd5 {[%emt 0:00:30]} 7. Bb5 {[%emt 0:00:39]} cxd4 {[%emt 0:00:19]} 8. Nxd4 {[%emt 0:00:07]} Bd7 {[%emt 0:00:06]} 9. O-O {[%emt 0:00:26] The position is equal.} Bd6 {[%emt 0:00:29]} 10. Nf3 {[%emt 0:00:40][%cal Oe3e4]} Bg4 {[%emt 0:00:11]} 11. Be2 {[%emt 0:00:16]} (11. Nxd5 Nxd5 12. e4 Nde7 $19) 11... O-O {[%emt 0:00:30]} 12. h3 {[%emt 0:00:41]} Bh5 {[%emt 0:00:31]} 13. b3 {[%emt 0:01:18]} (13. Nxd5 $2 {is the wrong capture.} Nxd5 14. Bd2 (14. Qxd5 $2 {too greedy.} Bh2+ 15. Nxh2 Qxd5 $19) 14... Qe7 $19) 13... Qa5 {[%emt 0:00:19]} 14. Bb2 {[%emt 0:05:31]} Rad8 {[%emt 0:01:03]} 15. Nd4 {[%emt 0:14:16]} Nxd4 {[%emt 0:01:04]} 16. Qxd4 {[%emt 0:12:06] Bxh5 would now be deadly.} Bc5 {[%emt 0:00:29]} 17. Qf4 {[%emt 0:00:24]} (17. Qa4 $5 Qxa4 18. Nxa4 (18. bxa4 d4 $15) 18... Bxe2 19. Rfe1 Bxe3 20. Bxf6 gxf6 21. Rxe2 $15) 17... d4 {[%emt 0:07:48]} 18. exd4 {[%emt 0:03:14]} Bxd4 {[%emt 0:08:02]} 19. Bxh5 {[%emt 0:03:11]} Nxh5 {[%emt 0:11:57]} 20. Qf3 {[%emt 0:00:21]} Rfe8 {[%emt 0:02:06]} 21. Rad1 {[%emt 0:05:07]} Nf6 {[%emt 0:12:09]} 22. Rd2 {[%emt 0:11:38][%cal Of1d1]} Be5 {[%emt 0:07:32]} 23. Re2 {[%emt 0:03:36]} Bd4 {[%emt 0:06:08] [#] Threatens to win with ...Rxe2.} 24. Rd2 {[%emt 0:14:27][%cal Of1d1]} Be5 {[%emt 0:00:14]} 25. Re2 {[%emt 0:01:05]} Bd4 {[%emt 0:00:10] Strongly threatening ...Rxe2.} 26. Rd2 {[%emt 0:00:02] A rather calm draw.   Weighted Error Value: White=0.02 (flawless) /Black=0.00 (flawless) .  OK:         	White=9     	Black=8      Best:        	---       	Black=1} 1/2-1/2

[Event "Karel Janecek Open 2024"]
[Site "Prague"]
[Date "2024.03.04"]
[Round "6.14"]
[White "Sethuraman, S.P."]
[Black "Balabayeva, Xeniya"]
[Result "1-0"]
[ECO "D12"]
[WhiteElo "2594"]
[BlackElo "2282"]
[Annotator "TA"]
[PlyCount "87"]
[EventDate "2024.02.22"]
[EventType "swiss"]
[EventCountry "CZE"]
[SourceTitle "playchess.com"]
[Source "ChessBase"]
[SourceQuality "1"]
[TimeControl "40/5400+30:1800+30"]

{[%evp 12,87,39,47,32,39,37,39,81,88,82,87,95,73,99,92,93,93,145,139,147,99,102,114,107,104,69,67,97,107,245,262,266,252,258,254,293,238,264,254,248,256,343,355,353,333,368,376,367,339,443,445,517,531,927,1044,1161,975,1429,1301,1583,1365,940,930,1969,1789,29970,29973,29974,1184,1097,1017,6195,6041,29989,29989,29989,29990]} 1. Nf3 {[%emt 0:01:14]} d5 {[%emt 0:01:41]} 2. d4 {[%emt 0:00:00]} Nf6 {[%emt 0:00:50]} 3. e3 {[%emt 0:00:00]} Bf5 {[%emt 0:10:40]} 4. c4 {[%emt 0:00:00]} e6 {[%emt 0:02:43]} 5. Nc3 {[%emt 0:00:00]} c6 {[%emt 0:01:11]} 6. Nh4 {[%emt 0:00:00]} Bg4 {[%emt 0:02:30]} 7. Qb3 {[%emt 0:01:28]} b6 {[%emt 0:09:18]} 8. h3 {[%emt 0:03:11] Black must now prevent cxd5.} Bh5 {[%emt 0:01:19]} 9. g4 {[%emt 0:00:15]} Bg6 {[%emt 0:01:01] White is slightly better.} 10. Nxg6 {[%emt 0:00:12]} hxg6 {[%emt 0:02:14]} 11. Bg2 {[%emt 0:00:06]} Bd6 {[%emt 0:05:55]} 12. Bd2 {[%emt 0:08:54][%cal Rc4d5]} Nbd7 {[%emt 0:02:42]} 13. O-O-O {[%emt 0:07:47]} Rc8 {[%emt 0:12:20]} 14. cxd5 {[%emt 0:03:44]} cxd5 {[%emt 0:10:20]} ({Better is} 14... Nxd5 15. Kb1 Be7) 15. Kb1 $16 {[%emt 0:00:07]} O-O {[%emt 0:08:50]} 16. g5 {[%emt 0:03:25]} (16. Nb5 $142 Bb8 17. Bb4) 16... Nh5 {[%emt 0:00:34]} 17. h4 {[%emt 0:00:06]} Nb8 {[%emt 0:02:07]} 18. e4 {[%emt 0:09:10]} Nc6 {[%emt 0:02:52]} 19. Nb5 {[%emt 0:06:56]} dxe4 {[%emt 0:08:38]} 20. Bxe4 {[%emt 0:00:08]} Qe7 {[%emt 0:02:17] [#] Black cannot hold the game after this.} (20... Bb8 $16) 21. Bxc6 $1 $18 {[%emt 0:05:02]} Rxc6 {[%emt 0:00:07]} 22. Nxd6 {[%emt 0:00:04]} Rxd6 {[%emt 0:01:52]} 23. Bb4 {[%emt 0:00:06]} Rfd8 {[%emt 0:01:12]} 24. Qe3 {[%emt 0:01:37]} (24. Bxd6 Qxd6 25. d5 exd5) 24... Qd7 {[%emt 0:00:30]} 25. Bxd6 {[%emt 0:00:08]} Qxd6 {[%emt 0:00:04] [#]} 26. d5 $1 {[%emt 0:00:17]} e5 {[%emt 0:01:03]} (26... exd5 27. Rd4) 27. Rhe1 {[%emt 0:00:12]} f6 {[%emt 0:00:39]} 28. Qe4 {[%emt 0:07:18]} Kf7 {[%emt 0:02:50]} 29. gxf6 {[%emt 0:04:11]} gxf6 {[%emt 0:00:07]} 30. Rc1 {[%emt 0:01:45][%cal Bd1c1,Bc1c6,Bc6c7][%mdl 32]} Nf4 {[%emt 0:02:29] [#]} 31. h5 $1 {[%emt 0:01:21] hxg6+ would now be deadly.} Nxh5 {[%emt 0:00:21]} (31... Qxd5 32. hxg6+) 32. Rc6 {[%emt 0:00:34]} Qxd5 {[%emt 0:00:27]} 33. Rc7+ {[%emt 0:00:12]} Ke6 {[%emt 0:00:09]} 34. Qg4+ {[%emt 0:01:22]} (34. Rxa7 Qxe4+ 35. Rxe4 Kf5 $11) 34... Kd6 {[%emt 0:00:14]} 35. Rxa7 {[%emt 0:02:27]} Nf4 {[%emt 0:02:10]} 36. Rd1 {[%emt 0:01:09]} Nd3 {[%emt 0:00:07]} 37. Qxg6 {[%emt 0:00:53]} Kc6 {[%emt 0:00:17]} 38. Qxf6+ {[%emt 0:02:27]} Rd6 {[%emt 0:00:20]} 39. Qe7 {[%emt 0:02:31]} Qd4 {[%emt 0:01:56]} 40. Qc7+ {[%emt 0:01:21]} (40. Rc7+ $142 Kb5 41. Qe8+ (41. Rc3 Qg4 $18) 41... Ka5 42. Rc3 (42. Ra7+ Kb4 43. Qa4+ Kc5 44. Rc7+ Kd5 45. Qa8+ Ke6 46. Qg8+ Kf5 47. Qh7+ Rg6) 42... b5 43. Ra3+ (43. Rcxd3 Qe4 $18) (43. Rdxd3 Qxd3+ 44. Rxd3 Rxd3 $18) 43... Kb6 44. Rdxd3 (44. Raxd3 Qxd3+ 45. Rxd3 Rxd3 46. Qg6+ Kc5 47. Qxd3 b4 48. Qe4 Kd6 49. Qxb4+ Ke6) 44... Qxd3+ 45. Rxd3) 40... Kb5 {[%emt 0:00:07]} 41. Qc2 {[%emt 0:30:16] And now Ra3 would win.} e4 {[%emt 0:32:56]} 42. Ra3 {[%emt 0:11:20] White threatens Rb3+ and mate.} Rf6 {[%emt 0:00:00]} 43. Rb3+ {[%emt 0:00:00]} Ka5 {[%emt 0:00:00]} 44. Qc7 {[%emt 0:00:00] Weighted Error Value: White=0.06 (flawless) /Black=0.69.  Mistake:       	White=1     	Black=2      Inaccurate:     	---       	Black=6      OK:         	White=12    	Black=4      Best:        	White=3     	Black=1      Strong:       	White=1     	---} 1-0

[Event "Karel Janecek Open 2024"]
[Site "Prague"]
[Date "2024.03.04"]
[Round "6.15"]
[White "Heberla, Bartlomiej"]
[Black "Sorm, Daniel"]
[Result "1-0"]
[ECO "A54"]
[WhiteElo "2546"]
[BlackElo "2279"]
[Annotator "TA"]
[PlyCount "59"]
[EventDate "2024.02.22"]
[EventType "swiss"]
[EventCountry "CZE"]
[SourceTitle "playchess.com"]
[Source "ChessBase"]
[SourceQuality "1"]
[TimeControl "40/5400+30:1800+30"]

{[%evp 11,59,37,28,38,41,34,45,45,44,30,47,55,40,69,70,63,109,122,147,113,173,172,208,214,208,227,201,186,208,213,194,133,461,504,990,974,1042,1040,1025,1058,987,977,1531,1537,1971,1987,29984,29985,29985,29984]} 1. Nf3 {[%emt 0:02:30]} d6 {[%emt 0:05:43]} 2. d4 {[%emt 0:01:55]} Nf6 {[%emt 0:00:09]} 3. c4 {[%emt 0:00:05]} Nbd7 {[%emt 0:00:08]} 4. Nc3 {[%emt 0:00:05]} e5 {[%emt 0:00:05]} 5. Bg5 {[%emt 0:00:29][%cal Bc1g5,Bg5h4,Bh4g3][%mdl 32]} h6 {[%emt 0:00:08]} 6. Bh4 {[%emt 0:00:04]} g5 {[%emt 0:00:10]} 7. Bg3 {[%emt 0:00:28][%cal Rd4e5]} Nh5 {[%emt 0:00:17]} 8. e3 {[%emt 0:01:57]} Bg7 {[%emt 0:05:51]} 9. Qc2 {[%emt 0:08:15] White is slightly better.} O-O {[%emt 0:03:10]} 10. O-O-O {[%emt 0:00:29]} Nxg3 {[%emt 0:07:32]} 11. hxg3 {[%emt 0:00:07]} g4 {[%emt 0:00:23]} 12. Nh4 {[%emt 0:00:46]} exd4 {[%emt 0:00:16]} 13. exd4 {[%emt 0:00:19]} Qg5+ {[%emt 0:06:06]} (13... Nb8 $14 {was preferrable.}) 14. Kb1 $16 {[%emt 0:00:02]} Nf6 {[%emt 0:04:29]} 15. Bd3 {[%emt 0:00:29]} Bd7 {[%emt 0:01:28]} (15... c6 $16) 16. Bf5 $18 {[%emt 0:01:35]} Rad8 {[%emt 0:06:21]} 17. f4 {[%emt 0:03:05]} gxf3 {[%emt 0:00:07]} 18. gxf3 {[%emt 0:00:12] f4 is the strong threat.} Rfe8 {[%emt 0:02:27]} 19. Rdg1 {[%emt 0:15:33]} Bxf5 {[%emt 0:06:07]} 20. Nxf5 {[%emt 0:00:17]} d5 {[%emt 0:00:27]} 21. f4 {[%emt 0:05:04]} ({White should play} 21. c5 $18) 21... Qg6 $2 {[%emt 0:02:09][%mdl 8192] [#] This move loses the game for Black.} (21... Qg4 $16 {is tougher.}) 22. g4 $1 {[%emt 0:00:03] Hoping for g5.} Kf8 {[%emt 0:19:01]} (22... Ne4 $142 23. Nxd5 Rxd5 24. cxd5 Kh7) 23. g5 {[%emt 0:05:49]} Ne4 {[%emt 0:01:22]} 24. gxh6 {[%emt 0:00:16]} (24. Nxh6 Nd2+ (24... Nxc3+ 25. bxc3 Qxc2+ 26. Kxc2 $16) 25. Kc1 Qxc2+ 26. Kxc2 Nf3 $11 (26... Nxc4 27. Nf5 $11)) 24... Qxf5 {[%emt 0:00:35]} 25. hxg7+ {[%emt 0:00:07]} (25. Rxg7 Rd6 26. Nxd5 Rxh6 $11) 25... Ke7 {[%emt 0:00:13]} 26. Nxd5+ {[%emt 0:02:54]} Kd6 {[%emt 0:01:47]} 27. Ka1 {[%emt 0:00:32][%cal Og1g5] Black must now prevent Rg5!} c6 {[%emt 0:03:57] [#]} 28. Rg5 $1 {[%emt 0:04:11][%mdl 512]} Qc8 {[%emt 0:03:04] [#]} (28... Qe6 29. f5) 29. g8=Q $1 {[%emt 0:04:24]} Rxg8 {[%emt 0:00:44]} 30. Qxe4 {[%emt 0:00:12] Weighted Error Value: White=0.05 (flawless) /Black=0.71.  Loses game:     	---       	Black=1      Mistake:       	White=1     	Black=3      OK:         	White=7     	Black=5      Best:        	White=2     	Black=2      Strong:       	White=1     	---} 1-0

[Event "Karel Janecek Open 2024"]
[Site "Prague"]
[Date "2024.03.04"]
[Round "6.16"]
[White "Daakshin Arun"]
[Black "Popovic, Dusan"]
[Result "1-0"]
[ECO "E94"]
[WhiteElo "2309"]
[BlackElo "2504"]
[Annotator "RC"]
[PlyCount "125"]
[EventDate "2024.02.22"]
[EventType "swiss"]
[EventCountry "CZE"]
[SourceTitle "playchess.com"]
[Source "ChessBase"]
[SourceQuality "1"]
[TimeControl "40/5400+30:1800+30"]

1. d4 {[%emt 0:00:04]} Nf6 {[%emt 0:00:13]} 2. c4 {[%emt 0:00:08]} d6 {[%emt 0:00:07]} 3. Nc3 {[%emt 0:00:22]} e5 {[%emt 0:00:18]} 4. Nf3 {[%emt 0:00:08]} Nbd7 {[%emt 0:00:13]} 5. e4 {[%emt 0:00:08]} g6 {[%emt 0:00:05]} 6. Be2 {[%emt 0:00:06]} Bg7 {[%emt 0:00:07]} 7. O-O {[%emt 0:00:06]} O-O {[%emt 0:00:05]} 8. Be3 {[%emt 0:00:14]} h6 {[%emt 0:00:24]} 9. dxe5 {[%emt 0:01:51]} dxe5 {[%emt 0:00:11]} 10. Qc1 {[%emt 0:02:43]} Ng4 {[%emt 0:01:14]} 11. Bd2 {[%emt 0:00:42]} Kh7 {[%emt 0:00:06]} 12. Rd1 {[%emt 0:04:23]} c6 {[%emt 0:01:25]} 13. h3 {[%emt 0:05:22]} Ngf6 {[%emt 0:00:46]} 14. b4 {[%emt 0:01:01]} Qe7 {[%emt 0:06:37]} 15. c5 {[%emt 0:03:47]} Nh5 {[%emt 0:01:14]} 16. g3 {[%emt 0:11:55]} b6 {[%emt 0:15:22]} 17. Be3 {[%emt 0:05:34]} bxc5 {[%emt 0:10:41]} 18. bxc5 {[%emt 0:01:08]} Rd8 {[%emt 0:19:26]} 19. Kg2 {[%emt 0:07:58]} Nf8 {[%emt 0:01:57]} 20. Qc2 {[%emt 0:06:18]} Ne6 {[%emt 0:01:59]} 21. Rxd8 {[%emt 0:02:31]} Qxd8 {[%emt 0:00:05]} 22. Rd1 {[%emt 0:00:32]} Qc7 {[%emt 0:08:33]} 23. Na4 {[%emt 0:05:39]} Rb8 {[%emt 0:02:35]} 24. Nb2 {[%emt 0:02:36]} Qe7 {[%emt 0:07:14]} 25. Nc4 {[%emt 0:04:49]} Nd8 {[%emt 0:10:46]} 26. Qa4 {[%emt 0:10:08]} Qc7 {[%emt 0:03:42]} 27. Bd2 {[%emt 0:06:56]} Ne6 {[%emt 0:00:22]} 28. Ba5 {[%emt 0:05:56]} Qe7 {[%emt 0:02:16]} 29. Qxc6 {[%emt 0:01:21]} Qxc5 {[%emt 0:04:11]} 30. Qxc5 {[%emt 0:02:17]} Nxc5 {[%emt 0:03:21]} 31. Nfxe5 {[%emt 0:00:41]} Be6 {[%emt 0:01:13]} 32. Nc6 {[%emt 0:03:51]} Ra8 {[%emt 0:00:00]} 33. Nd8 {[%emt 0:03:32]} Nf6 {[%emt 0:00:00]} 34. e5 {[%emt 0:02:06]} Nfd7 {[%emt 0:00:03]} 35. Nxe6 {[%emt 0:00:27]} fxe6 {[%emt 0:00:01]} 36. f4 {[%emt 0:00:33]} Nb6 {[%emt 0:00:17]} 37. Nxb6 {[%emt 0:00:34]} axb6 {[%emt 0:00:01]} 38. Bxb6 {[%emt 0:00:10]} Rxa2 {[%emt 0:00:39]} 39. Bxc5 {[%emt 0:00:49]} Rxe2+ {[%emt 0:00:00]} 40. Kf3 {[%emt 0:00:38]} Rc2 {[%emt 0:09:45]} 41. Be7 {[%emt 0:09:42]} h5 {[%emt 0:00:00]} 42. Bh4 {[%emt 0:05:45]} Bf8 {[%emt 0:00:59]} 43. Rd8 {[%emt 0:00:00]} Kg7 44. Bf6+ {[%emt 0:01:52]} Kf7 45. Rd7+ {[%emt 0:01:57]} Ke8 {[%emt 0:01:03]} 46. Rd8+ {[%emt 0:00:03]} Kf7 {[%emt 0:01:01]} 47. g4 {[%emt 0:00:36]} Rc3+ {[%emt 0:01:52]} 48. Kg2 {[%emt 0:00:18]} hxg4 {[%emt 0:00:48]} 49. hxg4 {[%emt 0:00:05]} Rb3 {[%emt 0:05:52]} 50. Rd7+ {[%emt 0:03:49]} Ke8 {[%emt 0:00:10]} 51. Rc7 {[%emt 0:00:18]} Ra3 {[%emt 0:01:25]} 52. Rh7 {[%emt 0:02:30]} Rb3 {[%emt 0:00:58]} 53. Rc7 {[%emt 0:01:07]} Ra3 {[%emt 0:00:04]} 54. Rb7 {[%emt 0:00:32]} Rc3 {[%emt 0:06:49]} 55. f5 {[%emt 0:00:40]} gxf5 {[%emt 0:00:29]} 56. g5 {[%emt 0:01:47]} Bc5 {[%emt 0:03:29]} 57. g6 {[%emt 0:01:21]} f4 {[%emt 0:00:36]} 58. Rb8+ {[%emt 0:02:44]} Kd7 {[%emt 0:00:01]} 59. g7 {[%emt 0:00:42]} f3+ {[%emt 0:01:31]} 60. Kh2 {[%emt 0:00:32]} Rc2+ {[%emt 0:02:49]} 61. Kg3 {[%emt 0:00:43]} f2 {[%emt 0:00:09]} 62. Rb1 {[%emt 0:00:47]} Rb2 {[%emt 0:02:39]} 63. Rd1+ {[%emt 0:00:06]} 1-0

[Event "Karel Janecek Open 2024"]
[Site "Prague"]
[Date "2024.03.04"]
[Round "6.17"]
[White "Hu, Zhening"]
[Black "Belenkaya, Dina"]
[Result "0-1"]
[ECO "D36"]
[WhiteElo "1776"]
[BlackElo "2202"]
[Annotator "RC"]
[PlyCount "92"]
[EventDate "2024.02.22"]
[EventType "swiss"]
[EventCountry "CZE"]
[SourceTitle "playchess.com"]
[Source "ChessBase"]
[SourceQuality "1"]
[TimeControl "40/5400+30:1800+30"]

1. d4 {[%emt 0:08:10]} d5 {[%emt 0:08:20]} 2. c4 {[%emt 0:00:00]} e6 {[%emt 0:00:21]} 3. Nc3 {[%emt 0:00:00]} Nf6 {[%emt 0:00:30]} 4. cxd5 {[%emt 0:00:00]} exd5 {[%emt 0:00:03]} 5. Bg5 {[%emt 0:00:00]} Be7 {[%emt 0:00:14]} 6. e3 {[%emt 0:00:00]} c6 {[%emt 0:00:19]} 7. Bd3 {[%emt 0:00:00]} O-O {[%emt 0:00:35]} 8. Qc2 {[%emt 0:00:25]} h6 {[%emt 0:09:18]} 9. Bh4 {[%emt 0:00:35]} Ne8 {[%emt 0:00:12]} 10. Bg3 {[%emt 0:03:13]} Nd6 {[%emt 0:00:52]} 11. Nf3 {[%emt 0:05:58]} Be6 {[%emt 0:00:12]} 12. O-O {[%emt 0:05:31]} Nd7 {[%emt 0:00:16]} 13. h3 {[%emt 0:05:43]} a5 {[%emt 0:03:03]} 14. Ne2 {[%emt 0:08:12]} a4 {[%emt 0:19:09]} 15. Nf4 {[%emt 0:05:59]} a3 {[%emt 0:01:15]} 16. b3 {[%emt 0:01:44]} Rc8 {[%emt 0:03:08]} 17. Rac1 {[%emt 0:07:30]} b6 {[%emt 0:05:27]} 18. b4 {[%emt 0:18:37]} b5 {[%emt 0:01:33]} 19. Qb3 {[%emt 0:04:14]} Nc4 {[%emt 0:00:47]} 20. Nxe6 {[%emt 0:01:28]} fxe6 {[%emt 0:00:03]} 21. Bxc4 {[%emt 0:00:06]} bxc4 {[%emt 0:00:25]} 22. Qxa3 {[%emt 0:00:10]} Qb6 {[%emt 0:01:15]} 23. Rb1 {[%emt 0:00:53]} Ra8 {[%emt 0:00:26]} 24. Qb2 {[%emt 0:00:53]} Ra4 {[%emt 0:03:06]} 25. a3 {[%emt 0:05:57]} Rfa8 {[%emt 0:03:43]} 26. Qc2 {[%emt 0:02:10]} Rxa3 {[%emt 0:06:48]} 27. Qg6 {[%emt 0:01:43]} Nf8 {[%emt 0:00:13]} 28. Qg4 {[%emt 0:00:12]} Qd8 {[%emt 0:21:51]} 29. b5 {[%emt 0:00:29]} cxb5 {[%emt 0:00:41]} 30. Rxb5 {[%emt 0:00:01]} R3a7 {[%emt 0:05:34]} 31. e4 {[%emt 0:04:05]} Qd7 {[%emt 0:01:01]} 32. Rb6 {[%emt 0:01:33]} Qc8 {[%emt 0:01:01]} 33. Be5 {[%emt 0:01:25]} Bd8 {[%emt 0:01:59]} 34. Rd6 {[%emt 0:02:00]} c3 {[%emt 0:00:29]} 35. Rc1 {[%emt 0:00:27]} Qc4 {[%emt 0:02:00]} 36. Ne1 {[%emt 0:02:23]} Bg5 {[%emt 0:00:56]} 37. f4 {[%emt 0:00:42]} Ra1 {[%emt 0:00:01]} 38. Rxa1 {[%emt 0:01:40]} Rxa1 {[%emt 0:00:01]} 39. fxg5 {[%emt 0:00:00]} Rxe1+ {[%emt 0:00:05]} 40. Kh2 {[%emt 0:00:02]} Qf1 {[%emt 0:02:30]} 41. gxh6 {[%emt 0:30:29]} Qg1+ {[%emt 0:30:04]} 42. Kg3 {[%emt 0:00:02]} Re3+ {[%emt 0:00:00]} 43. Kh4 {[%emt 0:00:00]} Rxe4 {[%emt 0:00:00]} 44. h7+ {[%emt 0:00:00]} Kxh7 {[%emt 0:00:00]} 45. Bf4 {[%emt 0:00:00]} Rxf4 {[%emt 0:00:00]} 46. Qxf4 {[%emt 0:00:00]} Ng6+ {[%emt 0:00:00]} 0-1

[Event "Karel Janecek Open 2024"]
[Site "Prague"]
[Date "2024.03.04"]
[Round "6.18"]
[White "Botez, Alexandra"]
[Black "Radzimski, Antoni"]
[Result "0-1"]
[ECO "E11"]
[WhiteElo "1977"]
[BlackElo "2197"]
[Annotator "RC"]
[PlyCount "82"]
[EventDate "2024.02.22"]
[EventType "swiss"]
[EventCountry "CZE"]
[SourceTitle "playchess.com"]
[Source "ChessBase"]
[SourceQuality "1"]
[TimeControl "40/5400+30:1800+30"]

1. d4 {[%emt 0:00:03]} Nf6 {[%emt 0:00:08]} 2. c4 {[%emt 0:00:31]} e6 {[%emt 0:00:06]} 3. Nf3 {[%emt 0:00:09]} Bb4+ {[%emt 0:00:05]} 4. Bd2 {[%emt 0:00:05]} Qe7 {[%emt 0:00:07]} 5. g3 {[%emt 0:00:27]} Nc6 {[%emt 0:00:13]} 6. Nc3 {[%emt 0:00:11]} Bxc3 {[%emt 0:00:32]} 7. Bxc3 {[%emt 0:00:15]} Ne4 {[%emt 0:00:29]} 8. Rc1 {[%emt 0:00:19]} d6 {[%emt 0:00:21]} 9. d5 {[%emt 0:01:11]} Nxc3 {[%emt 0:00:08]} 10. Rxc3 {[%emt 0:00:25]} Nd8 {[%emt 0:00:15]} 11. Bg2 {[%emt 0:00:38]} O-O {[%emt 0:00:12]} 12. Nd2 {[%emt 0:00:12]} e5 {[%emt 0:00:58]} 13. c5 {[%emt 0:00:15]} f5 {[%emt 0:10:20]} 14. cxd6 {[%emt 0:00:50]} cxd6 {[%emt 0:00:24]} 15. Qc2 {[%emt 0:00:27]} Nf7 {[%emt 0:00:30]} 16. Rc7 {[%emt 0:00:48]} Qf6 {[%emt 0:02:02]} 17. O-O {[%emt 0:03:46]} b6 {[%emt 0:06:14]} 18. Qa4 {[%emt 0:03:33]} a5 {[%emt 0:01:58]} 19. b4 {[%emt 0:06:19]} b5 {[%emt 0:04:57]} 20. Qa3 {[%emt 0:02:55]} a4 {[%emt 0:00:37]} 21. Rfc1 {[%emt 0:00:21]} Rb8 {[%emt 0:17:22]} 22. Ra7 {[%emt 0:29:14]} e4 {[%emt 0:02:35]} 23. Rcc7 {[%emt 0:21:37]} Qd4 {[%emt 0:02:25]} 24. Qe3 {[%emt 0:07:36]} Qxd5 {[%emt 0:02:52]} 25. f3 {[%emt 0:06:08]} Qxa2 {[%emt 0:11:08]} 26. Qd4 {[%emt 0:00:23]} Be6 {[%emt 0:04:43]} 27. fxe4 {[%emt 0:00:23]} fxe4 {[%emt 0:00:11]} 28. Bxe4 {[%emt 0:01:15]} Rbc8 {[%emt 0:03:33]} 29. Kg2 {[%emt 0:00:45]} a3 {[%emt 0:11:40]} 30. Rxc8 {[%emt 0:11:32]} Rxc8 {[%emt 0:00:11]} 31. Bb1 {[%emt 0:00:26]} Qd5+ {[%emt 0:02:17]} 32. Qxd5 {[%emt 0:00:05]} Bxd5+ {[%emt 0:00:04]} 33. e4 {[%emt 0:00:05]} Ra8 {[%emt 0:00:26]} 34. Rxa8+ {[%emt 0:01:07]} Bxa8 {[%emt 0:00:02]} 35. Ba2 {[%emt 0:00:10]} Kf8 {[%emt 0:00:36]} 36. Kf2 {[%emt 0:01:08]} Ne5 {[%emt 0:00:16]} 37. Ke2 {[%emt 0:02:21]} Nc6 {[%emt 0:00:08]} 38. Bd5 {[%emt 0:00:54]} Nd4+ {[%emt 0:00:03]} 39. Kd3 {[%emt 0:00:32]} Bxd5 {[%emt 0:00:05]} 40. Kc3 {[%emt 0:00:31]} a2 {[%emt 0:00:17]} 41. Kb2 {[%emt 0:30:16]} Nc2 {[%emt 0:30:04]} 0-1

[Event "Karel Janecek Open 2024"]
[Site "Prague"]
[Date "2024.03.04"]
[Round "6.19"]
[White "Narr, Kevin"]
[Black "Botez, Andrea"]
[Result "1-0"]
[ECO "A49"]
[WhiteElo "2007"]
[BlackElo "1709"]
[Annotator "NA RC"]
[PlyCount "63"]
[EventDate "2024.02.22"]
[EventType "swiss"]
[EventCountry "CZE"]
[SourceTitle "playchess.com"]
[Source "ChessBase"]
[SourceQuality "1"]
[TimeControl "40/5400+30:1800+30"]

1. Nf3 {[%emt 0:01:16]} Nf6 {[%emt 0:00:11]} 2. g3 {[%emt 0:00:06]} g6 {[%emt 0:00:09]} 3. b3 {[%emt 0:00:22]} Bg7 {[%emt 0:00:27]} 4. Bb2 {[%emt 0:00:03]} d6 {[%emt 0:00:13]} 5. d4 {[%emt 0:00:14]} O-O {[%emt 0:00:11]} 6. Bg2 {[%emt 0:00:08]} Nbd7 {[%emt 0:07:24]} 7. O-O {[%emt 0:01:21]} c6 {[%emt 0:00:25]} 8. Nbd2 {[%emt 0:00:32]} Re8 {[%emt 0:00:24]} 9. Re1 {[%emt 0:00:21]} b5 {[%emt 0:18:47]} 10. e4 {[%emt 0:03:27]} e5 {[%emt 0:02:58]} 11. a4 {[%emt 0:04:52]} a6 {[%emt 0:04:33]} 12. axb5 {[%emt 0:11:02]} cxb5 {[%emt 0:00:18]} 13. Ba3 {[%emt 0:04:20]} Qb6 {[%emt 0:06:40]} 14. Bb2 {[%emt 0:10:00]} Bb7 {[%emt 0:01:35]} 15. d5 {[%emt 0:04:12]} Ng4 {[%emt 0:02:29]} 16. Qe2 {[%emt 0:03:33]} f5 {[%emt 0:01:08]} 17. Nh4 {[%emt 0:13:56]} Rac8 {[%emt 0:28:13]} 18. c4 {[%emt 0:00:43]} Bh6 {[%emt 0:02:17]} 19. Bc1 {[%emt 0:03:59]} Ngf6 {[%emt 0:19:12]} 20. exf5 {[%emt 0:00:16]} Bxd2 {[%emt 0:02:04]} 21. Bxd2 {[%emt 0:00:02]} Kg7 {[%emt 0:00:24]} 22. Be3 {[%emt 0:00:45]} Qd8 {[%emt 0:00:21]} 23. cxb5 {[%emt 0:01:07]} axb5 {[%emt 0:00:30]} 24. fxg6 {[%emt 0:00:32]} hxg6 {[%emt 0:00:05]} 25. Qxb5 {[%emt 0:00:27]} Rb8 {[%emt 0:00:25]} 26. Ba7 {[%emt 0:02:27]} g5 {[%emt 0:01:02]} 27. Nf5+ {[%emt 0:00:24]} Kg6 {[%emt 0:00:07]} 28. Nxd6 {[%emt 0:00:16]} Rh8 {[%emt 0:00:57]} 29. Nxb7 {[%emt 0:00:59]} Rxb7 {[%emt 0:00:52]} 30. Qxb7 {[%emt 0:00:11]} Ng4 {[%emt 0:00:28]} 31. Ra6+ {[%emt 0:00:46]} Ndf6 {[%emt 0:00:10]} 32. Be4+ {[%emt 0:00:54]} 1-0